bitfinex/quotes_SOLUSD_20241110
["timestamp","ask_amount","ask_price","bid_price","bid_amount"]
[1731265169572,33.67647455,212.13,212.05,33.67647455]
[1731265169971,33.67647455,212.14,212.07,33.67647455]
[1731265171996,33.67647455,212.19,212.01,22.403]
[1731265171997,33.67647455,212.12,212.05,33.67647455]
[1731265172170,33.67647455,212.19,212.01,22.403]
[1731265172171,33.67647455,212.1,212.01,22.403]
[1731265172370,33.67647455,212.1,212.02,33.67647455]
[1731265172586,33.67647455,212.11,212.04,33.67647455]
[1731265173082,33.67647455,212.11,212.03,33.67647455]
[1731265173270,33.67647455,212.1,212.02,33.67647455]
[1731265173474,34.01340219,212.03,211.92,4.79145057]
[1731265173680,34.01340219,212.03,211.85,6.2215]
[1731265173681,34.01340219,211.93,211.85,6.2215]
[1731265173969,34.01340219,211.89,211.85,6.2215]
[1731265174178,34.01340219,211.86,211.85,6.2215]
[1731265174373,34.01340219,211.87,211.79,34.01340219]
[1731265174581,34.01340219,211.93,211.84,54.01340219]
[1731265174892,34.01340219,211.94,211.87,34.01340219]
[1731265175189,34.01340219,211.93,211.86,34.01340219]
[1731265175382,34.01340219,211.97,211.9,34.01340219]
[1731265175691,20.21273712,212.03,211.84,20.0]
[1731265175692,34.01340219,211.96,211.89,34.01340219]
[1731265175991,34.01340219,211.96,211.85,15.1732]
[1731265176172,0.21273712,212.03,211.85,15.1732]
[1731265176571,0.31273712,212.03,211.85,15.1732]
[1731265176986,0.21273712,212.03,211.85,15.1732]
[1731265177192,34.01340219,211.98,211.91,34.01340219]
[1731265177387,34.01340219,211.99,211.92,34.01340219]
[1731265177572,34.01340219,212.0,211.93,34.01340219]
[1731265177780,0.21273712,212.03,211.86,34.01340219]
[1731265177781,34.01340219,212.01,211.94,34.01340219]
[1731265177974,34.01340219,212.0,211.93,34.01340219]
[1731265178177,34.01340219,211.98,211.91,34.01340219]
[1731265178678,34.01340219,211.97,211.9,34.01340219]
[1731265179273,34.01340219,211.97,211.88,6.2215]
[1731265179590,34.01340219,211.97,211.9,34.01340219]
[1731265179794,34.01340219,211.96,211.89,34.01340219]
[1731265181196,34.01340219,211.95,211.89,34.01340219]
[1731265181574,34.01340219,211.97,211.9,34.01340219]
[1731265181781,34.01340219,211.97,211.91,34.01340219]
[1731265181982,34.01340219,212.0,211.93,34.01340219]
[1731265182192,34.01340219,212.01,211.94,34.01340219]
[1731265182576,34.01340219,211.97,211.86,43.776884]
[1731265182787,34.01340219,211.97,211.91,34.01340219]
[1731265183084,34.01340219,211.98,211.91,34.01340219]
[1731265183884,34.01340219,211.99,211.92,34.01340219]
[1731265184704,34.01340219,211.93,211.84,20.0]
[1731265184909,34.01340219,211.85,211.84,20.0]
[1731265185285,34.01340219,211.87,211.84,20.0]
[1731265185484,34.01340219,211.88,211.84,20.0]
[1731265185702,20.0,211.95,211.84,20.0]
[1731265185908,0.22549,212.01,211.84,54.01340219]
[1731265186079,34.01340219,211.91,211.84,20.0]
[1731265186280,34.01340219,211.92,211.84,54.01340219]
[1731265186485,34.01340219,211.9,211.84,20.0]
[1731265186683,34.01340219,211.89,211.84,20.0]
[1731265187178,34.01340219,211.97,211.84,20.0]
[1731265187179,34.01340219,211.9,211.84,20.0]
[1731265187401,34.01340219,211.94,211.86,34.01340219]
[1731265187583,34.01340219,211.95,211.87,34.01340219]
[1731265187783,34.01340219,211.95,211.88,34.01340219]
[1731265187983,34.01340219,211.96,211.89,34.01340219]
[1731265188192,34.01340219,211.95,211.88,34.01340219]
[1731265188408,34.01340219,211.95,211.87,34.01340219]
[1731265188583,34.01340219,211.95,211.88,34.01340219]
[1731265188993,34.01340219,211.95,211.87,34.01340219]
[1731265189195,34.01340219,211.97,211.9,34.01340219]
[1731265189592,0.1,212.05,211.92,34.01340219]
[1731265189593,34.01340219,211.99,211.92,34.01340219]
[1731265189796,34.01340219,212.0,211.93,34.01340219]
[1731265190003,34.01340219,211.99,211.93,34.01340219]
[1731265190214,34.01340219,211.99,211.92,34.01340219]
[1731265190506,34.01340219,211.98,211.91,56.20380219]
[1731265190902,34.01340219,211.97,211.91,22.1904]
[1731265191196,34.01340219,211.98,211.91,34.01340219]
[1731265193892,34.01340219,211.98,211.92,34.01340219]
[1731265194784,34.01340219,211.97,211.9,34.01340219]
[1731265195394,34.01340219,211.96,211.89,34.01340219]
[1731265196104,0.12549,212.05,211.89,34.01340219]
[1731265196105,34.01340219,211.95,211.89,34.01340219]
[1731265196418,0.12549,212.05,211.88,16.474]
[1731265196419,34.01340219,211.98,211.91,34.01340219]
[1731265196584,34.01340219,211.97,211.91,34.01340219]
[1731265197003,0.12549,212.05,211.93,34.01340219]
[1731265197004,34.01340219,212.0,211.93,34.01340219]
[1731265197392,40.04900219,212.08,211.99,40.55680219]
[1731265197393,40.38055907,212.08,211.99,40.55680219]
[1731265197711,34.01340219,212.07,212.0,34.01340219]
[1731265197903,34.01340219,212.08,212.01,34.01340219]
[1731265198798,34.01340219,212.09,212.02,34.01340219]
[1731265199009,34.01340219,212.09,212.03,34.01340219]
[1731265199189,34.01340219,212.09,212.0,16.4803]
[1731265199190,34.01340219,212.11,212.04,34.01340219]
[1731265199395,4.7119,212.23,212.0,16.4803]
[1731265199396,0.1,212.24,212.1,34.01340219]
[1731265199613,6.2311,212.25,212.11,34.01340219]
[1731265199614,34.01340219,212.17,212.11,34.01340219]
[1731265199909,11.67259083,212.3,212.01,23.776884]
[1731265199910,18.00369083,212.3,212.07,0.2]
[1731265200110,34.01340219,212.23,212.17,34.01340219]
[1731265200298,6.55159108,212.3,212.15,23.776884]
[1731265200501,34.01340219,212.27,212.21,34.01340219]
[1731265200708,34.01340219,212.28,212.21,34.01340219]
[1731265201022,34.01340219,212.27,212.21,34.01340219]
[1731265201222,34.01340219,212.27,212.2,34.01340219]
[1731265201519,34.01340219,212.25,212.18,34.01340219]
[1731265201706,0.1,212.35,212.15,23.776884]
[1731265201707,34.01340219,212.26,212.19,34.01340219]
[1731265202106,34.01340219,212.26,212.15,23.776884]
[1731265202107,34.01340219,212.3,212.23,34.01340219]
[1731265202303,34.01340219,212.31,212.25,34.01340219]
[1731265202506,34.01340219,212.28,212.21,34.01340219]
[1731265202703,34.01340219,212.3,212.23,34.01340219]
[1731265202909,0.1,212.37,212.15,23.776884]
[1731265203108,45.06230149,212.41,212.15,23.876884]
[1731265203109,0.1,212.36,212.15,23.876884]
[1731265203297,34.01340219,212.27,212.2,34.01340219]
[1731265203712,0.1,212.37,212.22,34.01340219]
[1731265203903,34.01340219,212.28,212.21,34.01340219]
[1731265204105,34.01340219,212.28,212.15,23.776884]
[1731265204106,34.01340219,212.26,212.19,34.01340219]
[1731265204419,34.01340219,212.27,212.2,34.01340219]
[1731265204815,34.01340219,212.21,212.14,16.4803]
[1731265205124,34.01340219,212.2,212.14,16.4803]
[1731265205332,34.01340219,212.18,212.14,16.4803]
[1731265205626,34.01340219,212.19,212.14,16.4803]
[1731265205827,34.01340219,212.22,212.14,50.49370219]
[1731265206017,34.01340219,212.21,212.14,50.49370219]
[1731265206218,34.01340219,212.3,212.14,50.49370219]
[1731265206219,34.01340219,212.24,212.17,34.01340219]
[1731265206529,34.01340219,212.28,212.21,34.01340219]
[1731265206706,0.1,212.33,212.14,16.4803]
[1731265206905,0.1,212.32,212.15,23.776884]
[1731265207125,0.22549,212.3,212.14,16.4803]
[1731265207501,0.12549,212.3,212.14,16.4803]
[1731265207728,34.01340219,212.18,212.14,16.4803]
[1731265207903,0.1,212.28,211.86,34.01340219]
[1731265207904,34.01340219,212.15,212.07,15.3192]
[1731265208106,34.01340219,212.14,212.07,49.33260219]
[1731265208309,20.0,212.23,212.1,34.01340219]
[1731265208519,20.1,212.23,212.07,15.3192]
[1731265208712,0.12549,212.22,212.07,15.3192]
[1731265208913,0.1,212.21,212.07,15.3192]
[1731265209116,0.12549,212.26,212.07,15.3192]
[1731265209416,0.1,212.25,212.07,15.3192]
[1731265209732,34.01340219,212.16,212.08,34.01340219]
[1731265209907,0.1,212.28,212.09,23.776884]
[1731265210108,34.01340219,212.18,212.08,23.776884]
[1731265210309,0.1,212.28,212.08,23.776884]
[1731265210310,0.1,212.25,212.08,23.776884]
[1731265211027,34.01340219,212.15,212.08,57.79028619]
[1731265211205,34.01340219,212.13,212.07,15.3192]
[1731265211412,4.8114,212.25,212.07,15.3192]
[1731265211413,34.01340219,212.16,212.08,34.01340219]
[1731265211726,34.01340219,212.19,212.07,15.3192]
[1731265211925,20.0,212.25,212.07,15.3192]
[1731265212128,0.1,212.27,212.07,15.3192]
[1731265213130,34.01340219,212.18,212.12,34.01340219]
[1731265213636,34.01340219,212.13,212.07,15.3192]
[1731265213812,34.01340219,212.19,212.07,15.3192]
[1731265213813,34.01340219,212.12,212.07,15.3192]
[1731265214014,34.01340219,212.11,212.07,15.3192]
[1731265214215,34.01340219,212.1,212.06,6.3207]
[1731265214416,34.01340219,212.1,212.03,34.01340219]
[1731265214616,34.01340219,212.09,212.02,34.01340219]
[1731265215018,0.12549,212.18,212.0,21.6399]
[1731265215019,34.01340219,212.1,212.03,34.01340219]
[1731265215524,34.01340219,212.08,212.01,34.01340219]
[1731265215718,34.01340219,212.09,212.02,34.01340219]
[1731265216233,34.01340219,212.08,212.01,34.01340219]
[1731265216642,34.01340219,212.08,212.04,11.7902]
[1731265216934,0.22549,212.18,212.04,11.7902]
[1731265216935,34.01340219,212.07,212.04,11.7902]
[1731265217119,34.01340219,212.06,212.04,11.7902]
[1731265217518,34.01340219,212.05,212.04,11.7902]
[1731265218712,6.54173267,212.11,212.04,11.7902]
[1731265218713,0.1,212.15,212.04,11.7902]
[1731265218935,0.1,212.11,212.04,11.7902]
[1731265219333,0.1,212.11,211.95,21.6399]
[1731265219531,0.1,212.03,211.88,6.3207]
[1731265219734,34.01340219,211.91,211.88,6.3207]
[1731265220241,34.01340219,211.94,211.88,6.3207]
[1731265220421,34.01340219,211.93,211.88,6.3207]
[1731265220730,0.1,212.04,211.9,34.01340219]
[1731265220731,20.12549,212.04,211.9,34.01340219]
[1731265220933,20.12549,212.04,211.88,6.3207]
[1731265220934,34.01340219,212.0,211.93,34.01340219]
[1731265221248,34.01340219,211.99,211.92,34.01340219]
[1731265221417,34.01340219,212.0,211.93,34.01340219]
[1731265221742,34.01340219,212.08,211.88,6.3207]
[1731265221743,0.12549,212.07,211.88,6.3207]
[1731265221928,34.01340219,211.96,211.89,34.01340219]
[1731265222130,34.01340219,211.98,211.91,34.01340219]
[1731265222439,34.01340219,211.95,211.89,34.01340219]
[1731265222645,34.01340219,211.95,211.88,40.33410219]
[1731265222844,34.01340219,211.94,211.89,4.7194]
[1731265224230,34.01340219,211.93,211.89,4.7194]
[1731265224433,20.1,212.06,211.92,34.01340219]
[1731265224625,20.1,212.06,211.89,4.7194]
[1731265224626,34.01340219,211.94,211.89,4.7194]
[1731265224829,34.01340219,211.93,211.89,4.7194]
[1731265225223,0.22549,212.05,211.89,4.7194]
[1731265225438,0.12549,212.05,211.89,4.7194]
[1731265225630,0.22549,212.03,211.89,4.7194]
[1731265226045,0.1,212.01,211.89,4.7194]
[1731265226348,34.01340219,211.92,211.89,4.7194]
[1731265226642,34.01340219,211.9,211.89,4.7194]
[1731265226843,34.01340219,211.9,211.82,6.3207]
[1731265227141,34.01340219,211.86,211.82,6.3207]
[1731265227325,34.01340219,211.87,211.82,6.3207]
[1731265227530,0.12549,211.96,211.82,6.3207]
[1731265227531,34.01340219,211.88,211.82,6.3207]
[1731265227731,34.01340219,211.86,211.82,6.3207]
[1731265227926,0.12549,211.96,211.82,6.3207]
[1731265227927,34.01340219,211.85,211.82,6.3207]
[1731265229352,34.01340219,211.86,211.82,6.3207]
[1731265230548,34.01340219,211.92,211.85,34.01340219]
[1731265230726,34.01340219,211.95,211.88,34.01340219]
[1731265230927,6.6836,212.05,211.82,6.3207]
[1731265230928,34.01340219,211.97,211.9,34.01340219]
[1731265231127,34.01340219,211.96,211.89,34.01340219]
[1731265231739,34.01340219,211.95,211.88,34.01340219]
[1731265232239,34.01340219,211.98,211.91,34.01340219]
[1731265232646,34.01340219,211.96,211.89,34.01340219]
[1731265233038,34.01340219,211.98,211.91,34.01340219]
[1731265233438,34.01340219,211.99,211.92,34.01340219]
[1731265233641,34.01340219,212.03,211.96,34.01340219]
[1731265233825,34.01340219,211.98,211.94,6.318]
[1731265234027,34.01340219,211.98,211.66,51.27905021]
[1731265234028,0.1,212.05,211.85,6.318]
[1731265234244,0.1,212.05,211.87,34.01340219]
[1731265234547,6.0552,212.06,211.85,6.318]
[1731265235248,0.1,212.03,211.85,6.318]
[1731265235450,34.01340219,211.92,211.85,40.33140219]
[1731265235652,34.01340219,211.95,211.87,34.01340219]
[1731265236751,34.01340219,211.9,211.85,6.318]
[1731265236932,34.01340219,211.88,211.85,6.318]
[1731265237345,34.01340219,211.87,211.85,6.318]
[1731265237733,34.01340219,211.88,211.85,6.318]
[1731265237931,34.01340219,211.89,211.85,6.318]
[1731265238145,34.01340219,211.88,211.85,6.318]
[1731265238731,34.01340219,211.89,211.85,6.318]
[1731265238931,34.01340219,211.88,211.84,20.0]
[1731265239359,34.01340219,211.87,211.84,20.0]
[1731265239655,34.01340219,211.85,211.84,20.0]
[1731265240854,54.13889219,211.85,211.84,20.0]
[1731265241037,0.22549,211.81,211.63,6.318]
[1731265241239,34.01340219,211.7,211.58,0.1]
[1731265241556,0.1,211.83,211.58,0.1]
[1731265241749,0.1,211.8,211.59,0.1]
[1731265241944,34.01340219,211.74,211.67,34.01340219]
[1731265242452,34.01340219,211.75,211.68,34.01340219]
[1731265242650,34.01340219,211.78,211.71,34.01340219]
[1731265242955,34.01340219,211.8,211.73,34.01340219]
[1731265243251,34.01340219,211.79,211.72,34.01340219]
[1731265243455,0.786,211.84,211.7,34.01340219]
[1731265243655,34.01340219,211.77,211.7,34.01340219]
[1731265243862,0.786,211.84,211.72,34.01340219]
[1731265243863,34.01340219,211.79,211.72,34.01340219]
[1731265244039,34.01340219,211.78,211.71,34.01340219]
[1731265244349,34.01340219,211.79,211.72,34.01340219]
[1731265244743,0.786,211.84,211.64,34.11340219]
[1731265244744,34.01340219,211.8,211.73,34.01340219]
[1731265245052,0.786,211.84,211.74,34.01340219]
[1731265245053,34.01340219,211.81,211.74,34.01340219]
[1731265245234,34.01340219,211.83,211.76,34.01340219]
[1731265245433,34.79940219,211.84,211.77,34.01340219]
[1731265245634,0.786,211.84,211.78,34.01340219]
[1731265246058,0.786,211.84,211.77,34.01340219]
[1731265246558,0.786,211.84,211.78,34.01340219]
[1731265247057,34.01340219,211.87,211.8,34.01340219]
[1731265248268,34.01340219,211.86,211.79,34.01340219]
[1731265248440,34.01340219,211.87,211.8,34.01340219]
[1731265248947,34.01340219,211.88,211.81,34.01340219]
[1731265249347,34.01340219,211.87,211.8,34.01340219]
[1731265249549,40.32271052,211.97,211.82,34.01340219]
[1731265249755,34.01340219,211.9,211.83,34.01340219]
[1731265249953,34.01340219,211.87,211.73,6.318]
[1731265250137,34.01340219,211.86,211.74,20.0]
[1731265250342,0.1,211.95,211.74,20.0]
[1731265250343,34.01340219,211.88,211.81,34.01340219]
[1731265250666,34.01340219,211.9,211.83,34.01340219]
[1731265250955,34.01340219,211.91,211.84,34.01340219]
[1731265251261,40.32271052,211.97,211.81,34.01340219]
[1731265251262,34.01340219,211.88,211.81,34.01340219]
[1731265251663,34.01340219,211.88,211.8,34.01340219]
[1731265252046,34.01340219,211.85,211.73,6.518]
[1731265252244,34.01340219,211.83,211.76,34.01340219]
[1731265252554,34.01340219,211.87,211.8,34.01340219]
[1731265252947,40.42271052,211.97,211.73,6.318]
[1731265253151,0.1,211.95,211.73,6.418]
[1731265253353,0.1,211.95,211.73,6.518]
[1731265253556,20.0,211.96,211.74,20.0]
[1731265254066,34.01340219,211.87,211.8,34.01340219]
[1731265254366,34.01340219,211.85,211.78,34.01340219]
[1731265255147,34.01340219,211.87,211.8,34.01340219]
[1731265255563,34.01340219,211.89,211.82,34.01340219]
[1731265255857,34.01340219,211.88,211.81,34.01340219]
[1731265256163,34.01340219,211.84,211.77,34.01340219]
[1731265256369,34.01340219,211.84,211.73,6.318]
[1731265256370,34.01340219,211.84,211.78,34.01340219]
[1731265257166,34.01340219,211.85,211.78,34.01340219]
[1731265257360,34.01340219,211.86,211.79,34.01340219]
[1731265257662,34.01340219,211.87,211.8,34.01340219]
[1731265257853,34.01340219,211.97,211.75,34.01340219]
[1731265257854,34.01340219,211.91,211.84,34.01340219]
[1731265258444,34.01340219,211.9,211.83,34.01340219]
[1731265258865,34.01340219,211.88,211.81,34.01340219]
[1731265259058,34.01340219,211.88,211.82,34.01340219]
[1731265259260,34.01340219,211.85,211.79,34.01340219]
[1731265260142,0.1,211.93,211.79,34.01340219]
[1731265260143,34.01340219,211.86,211.79,34.01340219]
[1731265260342,34.01340219,211.9,211.83,34.01340219]
[1731265260545,34.01340219,211.91,211.84,34.01340219]
[1731265260840,34.01340219,211.97,211.74,0.1]
[1731265260841,0.12549,211.95,211.74,0.1]
[1731265261044,0.1,211.94,211.73,6.318]
[1731265261344,0.12549,211.95,211.73,6.318]
[1731265261345,0.1,211.92,211.73,6.318]
[1731265261965,0.1,211.94,211.73,6.318]
[1731265262162,34.01340219,211.84,211.77,34.01340219]
[1731265262863,34.01340219,211.85,211.79,34.01340219]
[1731265263760,34.01340219,211.87,211.81,34.01340219]
[1731265263980,34.01340219,211.88,211.81,34.01340219]
[1731265264167,34.01340219,211.89,211.83,34.01340219]
[1731265264367,40.29323495,211.97,211.84,34.01340219]
[1731265264368,34.01340219,211.9,211.84,34.01340219]
[1731265264842,34.01340219,211.9,211.83,34.01340219]
[1731265265045,34.01340219,211.9,211.84,34.01340219]
[1731265265857,34.01340219,211.89,211.83,34.01340219]
[1731265266064,34.01340219,211.88,211.82,34.01340219]
[1731265266262,34.01340219,211.85,211.79,34.01340219]
[1731265266459,34.01340219,211.86,211.79,34.01340219]
[1731265266655,34.01340219,211.87,211.8,34.01340219]
[1731265266857,34.01340219,211.9,211.83,34.01340219]
[1731265267062,34.01340219,211.89,211.82,34.01340219]
[1731265267570,34.01340219,211.9,211.83,34.01340219]
[1731265267967,34.01340219,211.9,211.77,0.1]
[1731265268177,34.01340219,211.94,211.87,34.01340219]
[1731265268466,6.1606,212.04,211.9,34.01340219]
[1731265268669,34.01340219,211.95,211.88,34.01340219]
[1731265268848,34.01340219,211.92,211.86,6.3889]
[1731265269045,34.01340219,211.91,211.86,6.3889]
[1731265269252,0.12549,211.96,211.73,0.2]
[1731265269551,34.01340219,211.87,211.8,34.01340219]
[1731265269751,34.01340219,211.86,211.79,34.01340219]
[1731265270271,34.01340219,211.84,211.78,34.01340219]
[1731265270463,34.01340219,211.87,211.8,34.01340219]
[1731265270667,34.01340219,211.85,211.78,34.01340219]
[1731265271669,34.01340219,211.83,211.76,57.03360219]
[1731265271865,34.01340219,211.81,211.76,23.0202]
[1731265272075,34.01340219,211.8,211.76,23.0202]
[1731265272257,34.01340219,211.86,211.76,23.0202]
[1731265272258,34.01340219,211.81,211.76,23.0202]
[1731265272453,34.01340219,211.8,211.76,23.0202]
[1731265272859,34.01340219,211.78,211.68,6.0596]
[1731265273069,0.12549,211.85,211.68,6.0596]
[1731265273070,34.01340219,211.76,211.69,34.01340219]
[1731265273270,34.01340219,211.77,211.7,34.01340219]
[1731265273952,34.01340219,211.87,211.76,34.01340219]
[1731265274157,34.01340219,211.89,211.82,34.01340219]
[1731265274363,34.01340219,211.9,211.83,34.01340219]
[1731265274573,34.01340219,211.89,211.82,34.01340219]
[1731265275770,34.01340219,211.91,211.85,34.01340219]
[1731265276070,34.01340219,211.92,211.85,34.01340219]
[1731265276274,34.01340219,211.93,211.86,34.01340219]
[1731265276866,34.01340219,211.92,211.85,34.01340219]
[1731265277056,15.1763,212.01,211.87,34.01340219]
[1731265277258,34.01340219,211.95,211.88,34.01340219]
[1731265277453,34.01340219,211.95,211.89,34.01340219]
[1731265277655,6.1303,212.03,211.8,6.1596]
[1731265277656,34.01340219,211.97,211.9,34.01340219]
[1731265277955,34.01340219,211.91,211.84,34.01340219]
[1731265278163,6.1303,212.03,211.89,34.01340219]
[1731265278366,12.65027199,212.03,211.89,34.01340219]
[1731265278575,34.01340219,211.94,211.81,23.776884]
[1731265278876,34.01340219,211.95,211.89,34.01340219]
[1731265279179,34.01340219,212.01,211.94,55.31330219]
[1731265279354,34.01340219,211.99,211.94,21.2999]
[1731265279970,34.01340219,211.95,211.89,15.2403]
[1731265280271,34.01340219,212.0,211.93,34.01340219]
[1731265280478,34.01340219,211.99,211.93,34.01340219]
[1731265280672,34.01340219,212.01,211.94,34.01340219]
[1731265280888,34.01340219,212.03,211.96,34.01340219]
[1731265281059,6.48526394,212.12,211.97,33.49430629]
[1731265281370,34.01340219,212.05,211.98,34.01340219]
[1731265281575,34.01340219,212.07,212.0,34.01340219]
[1731265281777,34.01340219,212.07,212.02,15.2403]
[1731265282077,34.01340219,212.19,212.02,15.2403]
[1731265282078,34.01340219,212.08,212.02,15.2403]
[1731265282378,34.01340219,212.04,212.02,15.2403]
[1731265282678,34.01340219,212.03,212.01,6.0596]
[1731265283280,34.01340219,212.09,212.03,23.776884]
[1731265283882,34.01340219,212.1,212.03,34.01340219]
[1731265284057,34.01340219,212.11,212.04,34.01340219]
[1731265284259,6.1303,212.28,212.1,34.01340219]
[1731265284467,34.01340219,212.19,212.12,34.01340219]
[1731265284775,49.18970219,212.3,212.17,34.01340219]
[1731265284975,12.41137591,212.33,212.11,0.1]
[1731265285179,15.1763,212.37,212.13,0.2]
[1731265285472,34.01340219,212.27,212.21,34.01340219]
[1731265285683,34.01340219,212.23,212.11,0.1]
[1731265285972,34.01340219,212.17,212.11,34.01340219]
[1731265286171,0.12549,212.29,212.1,23.776884]
[1731265286378,0.12549,212.29,212.13,34.01340219]
[1731265286555,40.49866764,212.3,212.1,23.776884]
[1731265286556,34.01340219,212.3,212.16,34.01340219]
[1731265286757,34.01340219,212.24,212.18,34.01340219]
[1731265286977,34.01340219,212.23,212.17,34.01340219]
[1731265287381,34.01340219,212.22,212.16,34.01340219]
[1731265287685,34.01340219,212.26,212.19,34.01340219]
[1731265287978,34.01340219,212.25,212.19,34.01340219]
[1731265288474,34.01340219,212.26,212.19,34.01340219]
[1731265288677,34.01340219,212.26,212.2,15.9417]
[1731265288877,34.01340219,212.26,212.2,49.95510219]
[1731265289075,34.01340219,212.27,212.2,49.95510219]
[1731265289275,34.01340219,212.27,212.21,34.01340219]
[1731265289583,34.01340219,212.23,212.2,15.9417]
[1731265289880,34.01340219,212.21,212.14,34.01340219]
[1731265290068,34.01340219,212.2,212.14,34.01340219]
[1731265290385,34.01340219,212.2,212.13,49.95510219]
[1731265290562,34.01340219,212.23,212.17,34.01340219]
[1731265290767,34.01340219,212.24,212.17,34.01340219]
[1731265291504,34.01340219,212.24,212.18,34.01340219]
[1731265291691,34.01340219,212.25,212.18,34.01340219]
[1731265292062,34.01340219,212.28,212.21,34.01340219]
[1731265292262,34.01340219,212.27,212.2,34.01340219]
[1731265292697,34.01340219,212.25,212.19,57.79028619]
[1731265292870,34.01340219,212.24,212.19,16.4945]
[1731265293066,34.01340219,212.25,212.19,16.4945]
[1731265293374,34.01340219,212.2,212.19,16.4945]
[1731265293870,0.12549,212.28,212.19,16.4945]
[1731265294570,34.01340219,212.23,212.19,16.4945]
[1731265294763,34.01340219,212.23,212.19,11.7818]
[1731265295383,34.01340219,212.24,212.19,11.7818]
[1731265295569,34.01340219,212.23,212.19,11.7818]
[1731265296164,34.01340219,212.25,212.18,34.01340219]
[1731265296577,15.4914,212.37,212.19,34.01340219]
[1731265296578,34.01340219,212.26,212.19,34.01340219]
[1731265297476,34.01340219,212.29,212.22,34.01340219]
[1731265297679,34.01340219,212.34,212.28,34.01340219]
[1731265297880,34.01340219,212.33,212.26,34.01340219]
[1731265298377,12.58265909,212.4,212.3,34.01340219]
[1731265298570,34.01340219,212.38,212.31,34.01340219]
[1731265298773,34.01340219,212.39,212.32,34.01340219]
[1731265299086,34.01340219,212.36,212.29,34.01340219]
[1731265299287,34.01340219,212.36,212.3,23.776884]
[1731265299472,34.01340219,212.37,212.3,57.79028619]
[1731265299782,34.01340219,212.38,212.31,34.01340219]
[1731265300090,34.01340219,212.39,212.32,34.01340219]
[1731265300581,34.01340219,212.38,212.31,34.01340219]
[1731265300782,34.01340219,212.38,212.26,0.1]
[1731265300783,34.01340219,212.39,212.32,57.79028619]
[1731265300964,34.01340219,212.39,212.32,64.25688619]
[1731265301167,34.01340219,212.41,212.34,34.01340219]
[1731265301495,34.01340219,212.35,212.28,23.776884]
[1731265301686,34.01340219,212.33,212.28,23.776884]
[1731265301979,0.12549,212.4,212.29,34.01340219]
[1731265302182,20.0,212.48,212.28,23.776884]
[1731265302373,6.2219,212.51,212.28,23.776884]
[1731265302374,0.1,212.5,212.28,23.776884]
[1731265302578,6.1219,212.51,212.3,23.776884]
[1731265302876,0.1,212.45,212.29,16.4868]
[1731265303270,34.01340219,212.33,212.29,16.4868]
[1731265303790,34.01340219,212.34,212.29,16.4868]
[1731265304091,34.01340219,212.35,212.29,16.4868]
[1731265304386,34.01340219,212.34,212.29,16.4868]
[1731265304600,34.01340219,212.33,212.29,16.4868]
[1731265305686,0.12549,212.43,212.3,23.776884]
[1731265305873,34.01340219,212.34,212.3,23.776884]
[1731265306514,34.01340219,212.35,212.3,23.776884]
[1731265306789,34.01340219,212.38,212.31,6.1408]
[1731265307006,34.01340219,212.38,212.32,23.776884]
[1731265307284,34.01340219,212.37,212.32,23.776884]
[1731265307872,34.01340219,212.36,212.32,23.776884]
[1731265308274,34.01340219,212.35,212.31,6.1408]
[1731265309083,34.01340219,212.36,212.31,6.1408]
[1731265309593,22.81915049,212.49,212.31,6.1408]
[1731265309886,34.01340219,212.4,212.34,23.776884]
[1731265310072,34.01340219,212.35,212.21,0.1]
[1731265310273,34.01340219,212.32,212.24,50.31570219]
[1731265310887,34.01340219,212.41,212.29,34.01340219]
[1731265311087,20.0,212.48,212.29,34.01340219]
[1731265311285,34.01340219,212.37,212.3,23.776884]
[1731265311487,34.01340219,212.39,212.32,57.79028619]
[1731265311797,34.01340219,212.35,212.32,23.776884]
[1731265312292,34.01340219,212.34,212.31,6.1408]
[1731265312686,34.01340219,212.33,212.31,6.1408]
[1731265313109,34.01340219,212.32,212.25,6.5319]
[1731265313400,34.01340219,212.29,212.25,6.5319]
[1731265313575,20.0,212.39,212.25,6.5319]
[1731265313775,34.01340219,212.3,212.25,6.5319]
[1731265313976,34.01340219,212.31,212.25,6.5319]
[1731265314175,34.01340219,212.33,212.25,40.54530219]
[1731265314501,34.01340219,212.33,212.27,23.776884]
[1731265314792,34.01340219,212.34,212.27,57.79028619]
[1731265314987,34.01340219,212.36,212.29,23.776884]
[1731265315192,34.01340219,212.37,212.31,23.776884]
[1731265315578,34.01340219,212.34,212.27,34.01340219]
[1731265315786,34.01340219,212.35,212.28,57.79028619]